fUST/lending_fUST_20250923
["ID","MTS","AMOUNT","RATE_DAILY","PERIOD"]
[387191244,1758629439270,-500.0,0.00019077,2]
[387191245,1758629439279,-500.0,0.00019077,2]
[387191246,1758629439288,-500.0,0.00019077,2]
[387191247,1758629439297,-500.0,0.00019077,2]
[387191248,1758629439306,-500.0,0.00019077,2]
[387191249,1758629439316,-651.48178766,0.00019077,2]
[387191250,1758629439325,-500.0,0.00019077,2]
[387191251,1758629439335,-500.0,0.00019077,2]
[387191252,1758629439344,-500.0,0.00019077,2]
[387191253,1758629439353,-500.0,0.00019077,2]
[387191254,1758629439363,-500.0,0.00019077,2]
[387191255,1758629439372,-500.0,0.00019077,2]
[387191256,1758629439382,-500.0,0.00019077,2]
[387191257,1758629439392,-500.0,0.00019077,2]
[387191258,1758629439402,-500.0,0.00019077,2]
[387191259,1758629439412,-500.0,0.00019077,2]
[387191260,1758629439422,-500.0,0.00019077,2]
[387191261,1758629439431,-250.0,0.00019077,2]
[387191262,1758629439442,-199.53587219,0.00019077,2]
[387191263,1758629439452,-309.48,0.00019078,2]
[387191264,1758629439462,-2547.3579715,0.00019078,2]
[387191265,1758629439472,-77200.9341087,0.00019078,2]
[387191266,1758629439481,-23102.15391225,0.00019078,2]
[387191267,1758629439491,-1002.280107,0.000191,2]
[387191268,1758629439501,-4584.0,0.00019152,2]
[387191269,1758629439510,-150.0,0.00019155,2]
[387191270,1758629439520,-287.91,0.00019168,3]
[387191271,1758629439530,-863.75,0.00019168,3]
[387191272,1758629439539,-432.17444959,0.00019173,2]
[387191273,1758629439549,-500.0,0.00019173,2]
[387191274,1758629439558,-500.0,0.00019173,2]
[387191275,1758629439568,-500.0,0.00019173,2]
[387191276,1758629439577,-500.0,0.00019173,2]
[387191277,1758629439587,-202.8330951,0.00019173,2]
[387191278,1758629439596,-500.0,0.00019173,2]
[387191279,1758629439605,-500.0,0.00019173,2]
[387191280,1758629439615,-500.0,0.00019173,2]
[387191281,1758629439624,-500.0,0.00019173,2]
[387191282,1758629439634,-500.0,0.00019173,2]
[387191283,1758629439644,-500.0,0.00019173,2]
[387191284,1758629439653,-219.93404224,0.00019173,2]
[387191285,1758629439663,-259.96685265,0.00019173,2]
[387191286,1758629439673,-376.17427947,0.00019173,2]
[387191287,1758629439683,-500.0,0.00019173,2]
[387191288,1758629439693,-500.0,0.00019173,2]
[387191289,1758629439703,-500.0,0.00019173,2]
[387191290,1758629439712,-500.0,0.00019173,2]
[387191291,1758629439722,-500.0,0.00019173,2]
[387191292,1758629439732,-500.0,0.00019173,2]
[387191293,1758629439741,-500.0,0.00019173,2]
[387191294,1758629439751,-500.0,0.00019173,2]
[387191295,1758629439761,-339.28797288,0.00019173,2]
[387191296,1758629439770,-500.0,0.00019173,2]
[387191297,1758629439780,-500.0,0.00019173,2]
[387191298,1758629439789,-500.0,0.00019173,2]
[387191299,1758629439798,-500.0,0.00019173,2]
[387191300,1758629439808,-500.0,0.00019173,2]
[387191301,1758629439817,-328.0,0.00019177,2]
[387191302,1758629439827,-328.0,0.00019177,2]
[387191303,1758629439836,-328.0,0.00019177,2]
[387191304,1758629439846,-1000.0,0.00019177,2]
[387191305,1758629439855,-1000.0,0.00019177,2]
[387191306,1758629439864,-1000.0,0.00019177,2]
[387191307,1758629439874,-1000.0,0.00019177,2]
[387191308,1758629439884,-1000.0,0.00019177,2]
[387191309,1758629439893,-1000.0,0.00019177,2]
[387191310,1758629439904,-1000.0,0.00019177,2]
[387191311,1758629439913,-1000.0,0.00019177,2]
[387191312,1758629439924,-1000.0,0.00019177,2]
[387191313,1758629439933,-1010.5432216,0.00019177,2]
[387191314,1758629439945,-151.0,0.00019177,2]
[387191315,1758629439955,-159.08363954,0.00019177,2]
[387191316,1758629439965,-480.0,0.00019178,2]
[387191317,1758629439975,-480.0,0.00019178,2]
[387191318,1758629439984,-480.0,0.00019178,2]
[387191319,1758629439995,-480.0,0.00019178,2]
[387191320,1758629440005,-480.0,0.00019178,2]
[387191321,1758629440015,-480.0,0.00019178,2]
[387191322,1758629440024,-458.28222218,0.00019178,2]
[387191323,1758629440034,-480.0,0.00019178,2]
[387191324,1758629440044,-480.0,0.00019178,2]
[387191325,1758629440054,-480.0,0.00019178,2]
[387191326,1758629440064,-480.0,0.00019178,2]
[387191327,1758629440074,-480.0,0.00019178,2]
[387191328,1758629440084,-480.0,0.00019178,2]
[387191329,1758629440093,-480.0,0.00019178,2]
[387191330,1758629440103,-480.0,0.00019178,2]
[387191331,1758629440113,-480.0,0.00019178,2]
[387191332,1758629440123,-480.0,0.00019178,2]
[387191333,1758629440133,-480.0,0.00019178,2]
[387191334,1758629440143,-480.0,0.00019178,2]
[387191335,1758629440153,-565.02299046,0.00019178,2]
[387191336,1758629440162,-480.0,0.00019178,2]
[387191337,1758629440175,-480.0,0.00019178,2]
[387191338,1758629440185,-480.0,0.00019178,2]
[387191339,1758629440198,-480.0,0.00019178,2]
[387191340,1758629440208,-185.5079589,0.00019178,2]
[387191341,1758629440219,-480.0,0.00019178,2]
[387191342,1758629440229,-480.0,0.00019178,2]
[387191343,1758629440239,-480.0,0.00019178,2]
[387191344,1758629440249,-151.0,0.00019178,2]
[387191345,1758629440259,-480.0,0.00019178,2]
[387191346,1758629440268,-151.0,0.00019178,2]
[387191347,1758629440278,-608.86015186,0.00019178,2]
[387191348,1758629440287,-480.0,0.00019178,2]
[387191350,1758629440297,-480.0,0.00019178,2]
[387191351,1758629440306,-480.0,0.00019178,2]
[387191352,1758629440315,-480.0,0.00019178,2]
[387191353,1758629440324,-461.6475741,0.00019178,2]
[387191354,1758629440334,-494.04610861,0.00019178,2]
[387191355,1758629440444,-480.0,0.00019178,2]
[387191356,1758629440455,-480.0,0.00019178,2]
[387191358,1758629440464,-480.0,0.00019178,2]
[387191359,1758629440474,-480.0,0.00019178,2]
[387191360,1758629440483,-480.0,0.00019178,2]
[387191361,1758629440493,-580.737042,0.00019178,2]
[387191362,1758629440502,-480.0,0.00019178,2]
[387191363,1758629440512,-480.0,0.00019178,2]
[387191365,1758629440521,-767.96,0.00019178,2]
[387191367,1758629440531,-480.0,0.00019178,2]
[387191369,1758629440540,-503.92166849,0.00019178,2]
[387191371,1758629440549,-480.0,0.00019178,2]
[387191373,1758629440559,-480.0,0.00019178,2]
[387191375,1758629440568,-482.42498426,0.00019178,2]
[387191377,1758629440578,-480.0,0.00019178,2]
[387191379,1758629440588,-480.0,0.00019178,2]
[387191381,1758629440598,-480.0,0.00019178,2]
[387191383,1758629440607,-484.43047295,0.00019178,2]
[387191385,1758629440617,-480.0,0.00019178,2]
[387191387,1758629440628,-480.0,0.00019178,2]
[387191389,1758629440637,-480.0,0.00019178,2]
[387191391,1758629440647,-540.29407798,0.00019178,2]
[387191393,1758629440657,-480.0,0.00019178,2]
[387191395,1758629440665,-480.0,0.00019178,2]
[387191397,1758629440675,-409.60182059,0.00019178,2]
[387191399,1758629440684,-480.0,0.00019178,2]
[387191401,1758629440695,-480.0,0.00019178,2]
[387191403,1758629440704,-482.65983726,0.00019178,2]
[387191405,1758629440713,-480.0,0.00019178,2]
[387191407,1758629440722,-480.0,0.00019178,2]
[387191408,1758629440731,-480.0,0.00019178,2]
[387191410,1758629440742,-480.0,0.00019178,2]
[387191412,1758629440751,-480.0,0.00019178,2]
[387191414,1758629440760,-480.0,0.00019178,2]
[387191416,1758629440769,-480.0,0.00019178,2]
[387191418,1758629440779,-483.80239424,0.00019178,2]
[387191420,1758629440788,-480.0,0.00019178,2]
[387191422,1758629440798,-480.0,0.00019178,2]
[387191424,1758629440807,-483.76345548,0.00019178,2]
[387191426,1758629440817,-480.0,0.00019178,2]
[387191428,1758629440826,-480.0,0.00019178,2]
[387191431,1758629440839,-480.0,0.00019178,2]
[387191433,1758629441061,-480.0,0.00019178,2]
[387191435,1758629441071,-480.0,0.00019178,2]
[387191437,1758629441082,-480.0,0.00019178,2]
[387191439,1758629441091,-480.0,0.00019178,2]
[387191441,1758629441101,-480.0,0.00019178,2]
[387191443,1758629441111,-480.0,0.00019178,2]
[387191445,1758629441120,-480.0,0.00019178,2]
[387191447,1758629441129,-480.0,0.00019178,2]
[387191449,1758629441138,-480.0,0.00019178,2]
[387191451,1758629441148,-480.0,0.00019178,2]
[387191453,1758629441157,-482.86998673,0.00019178,2]
[387191455,1758629441167,-298.16864275,0.00019178,2]
[387191457,1758629441179,-480.0,0.00019178,2]
[387191459,1758629441190,-480.0,0.00019178,2]
[387191461,1758629441199,-387.82826811,0.00019178,2]
[387191463,1758629441208,-486.44809292,0.00019178,2]
[387191465,1758629441218,-481.75313684,0.00019178,2]
[387191467,1758629441228,-481.99017097,0.00019178,2]
[387191469,1758629441237,-480.0,0.00019178,2]
[387191471,1758629441248,-482.1690001,0.00019178,2]
[387191473,1758629441258,-480.0,0.00019178,2]
[387191475,1758629441267,-480.0,0.00019178,2]
[387191477,1758629441276,-724.52,0.00019178,2]
[387191479,1758629441286,-480.0,0.00019178,2]
[387191481,1758629441294,-480.0,0.00019178,2]
[387191483,1758629441304,-480.0,0.00019178,2]
[387191485,1758629441313,-480.0,0.00019178,2]
[387191487,1758629441322,-484.90621783,0.00019178,2]
[387191489,1758629441332,-480.0,0.00019178,2]
[387191491,1758629441341,-480.0,0.00019178,2]
[387191492,1758629441350,-480.0,0.00019178,2]
[387191493,1758629441359,-481.41818917,0.00019178,2]
[387191495,1758629441369,-580.37324782,0.00019178,2]
[387191497,1758629441378,-176.30827754,0.00019178,2]
[387191498,1758629441387,-480.0,0.00019178,2]
[387191499,1758629441396,-480.0,0.00019178,2]
[387191500,1758629441406,-467.64680638,0.00019178,2]
[387191501,1758629441415,-500.0,0.00019178,2]
[387191502,1758629441424,-259.858841,0.00019178,2]
[387191503,1758629441433,-500.0,0.00019178,2]
[387191504,1758629441443,-500.0,0.00019178,2]
[387191505,1758629441453,-480.0,0.00019178,2]
[387191506,1758629441462,-480.0,0.00019178,2]
[387191507,1758629441471,-480.0,0.00019178,2]
[387191508,1758629441480,-480.0,0.00019178,2]
[387191509,1758629441489,-500.0,0.00019178,2]
[387191510,1758629441499,-500.0,0.00019178,2]
[387191511,1758629441508,-500.0,0.00019178,2]
[387191512,1758629441517,-480.0,0.00019178,2]
[387191513,1758629441527,-547.88531598,0.00019178,2]
[387191514,1758629441536,-153.241372,0.00019178,2]
[387191515,1758629441545,-480.0,0.00019178,2]
[387191516,1758629441555,-480.0,0.00019178,2]
[387191517,1758629441564,-480.0,0.00019178,2]
[387191518,1758629441574,-480.0,0.00019178,2]
[387191519,1758629441583,-480.0,0.00019178,2]
[387191520,1758629441593,-480.0,0.00019178,2]
[387191521,1758629441602,-480.0,0.00019178,2]
[387191522,1758629441612,-480.0,0.00019178,2]
[387191523,1758629441621,-2317.23,0.00019178,2]
[387191524,1758629441631,-483.9904731,0.00019178,2]
[387191525,1758629441640,-480.0,0.00019178,2]
[387191526,1758629441649,-480.0,0.00019178,2]
[387191527,1758629441658,-480.0,0.00019178,2]
[387191528,1758629441667,-480.0,0.00019178,2]
[387191529,1758629441676,-480.0,0.00019178,2]
[387191530,1758629441685,-480.0,0.00019178,2]
[387191531,1758629441696,-480.0,0.00019178,2]
[387191532,1758629441706,-480.0,0.00019178,2]
[387191533,1758629441715,-480.0,0.00019178,2]
[387191534,1758629441726,-520.06612952,0.00019178,2]
[387191535,1758629441739,-480.0,0.00019178,2]
[387191536,1758629441748,-480.0,0.00019178,2]
[387191537,1758629441757,-480.0,0.00019178,2]
[387191538,1758629441767,-391.16756464,0.00019178,2]
[387191539,1758629441776,-480.0,0.00019178,2]
[387191540,1758629441785,-500.0,0.00019178,2]
[387191541,1758629441794,-480.0,0.00019178,2]
[387191542,1758629441803,-845.41,0.00019178,2]
[387191543,1758629441812,-480.0,0.00019178,2]
[387191544,1758629441823,-480.0,0.00019178,2]
[387191545,1758629441835,-156.174376,0.00019178,2]
[387191546,1758629441852,-480.0,0.00019178,2]
[387191547,1758629441870,-489.80874457,0.00019178,2]
[387191548,1758629441881,-483.25654893,0.00019178,2]
[387191549,1758629441890,-480.0,0.00019178,2]
[387191550,1758629441899,-480.0,0.00019178,2]
[387191551,1758629441908,-488.90310574,0.00019178,2]
[387191552,1758629441917,-480.0,0.00019178,2]
[387191553,1758629441927,-520.07077099,0.00019178,2]
[387191554,1758629441936,-1705.88,0.00019178,2]
[387191555,1758629441946,-480.0,0.00019178,2]
[387191556,1758629441955,-480.0,0.00019178,2]
[387191557,1758629441964,-480.0,0.00019178,2]
[387191558,1758629441973,-484.22602608,0.00019178,2]
[387191559,1758629441983,-480.0,0.00019178,2]
[387191560,1758629441992,-480.0,0.00019178,2]
[387191561,1758629442002,-480.0,0.00019178,2]
[387191562,1758629442011,-480.0,0.00019178,2]
[387191563,1758629442021,-1229.73,0.00019178,2]
[387191564,1758629442031,-480.0,0.00019178,2]
[387191565,1758629442040,-480.0,0.00019178,2]
[387191566,1758629442050,-480.0,0.00019178,2]
[387191567,1758629442059,-480.0,0.00019178,2]
[387191568,1758629442068,-481.95685399,0.00019178,2]
[387191569,1758629442078,-364.01,0.00019178,2]
[387191570,1758629442087,-480.0,0.00019178,2]
[387191571,1758629442097,-480.0,0.00019178,2]
[387191572,1758629442106,-480.0,0.00019178,2]
[387191573,1758629442115,-1061.05,0.00019178,2]
[387191574,1758629442124,-480.0,0.00019178,2]
[387191575,1758629442133,-480.0,0.00019178,2]
[387191576,1758629442143,-480.0,0.00019178,2]
[387191577,1758629442152,-320.42287508,0.00019178,2]
[387191578,1758629442161,-480.0,0.00019178,2]
[387191579,1758629442172,-480.0,0.00019178,2]
[387191580,1758629442181,-1096.37,0.00019178,2]
[387191581,1758629442192,-480.0,0.00019178,2]
[387191582,1758629442201,-480.0,0.00019178,2]
[387191583,1758629442210,-480.0,0.00019178,2]
[387191584,1758629442226,-480.0,0.00019178,2]
[387191585,1758629442236,-480.0,0.00019178,2]
[387191586,1758629442253,-480.0,0.00019178,2]
[387191587,1758629442263,-480.0,0.00019178,2]
[387191588,1758629442273,-488.54173839,0.00019178,2]
[387191589,1758629442283,-1203.78,0.00019178,2]
[387191590,1758629442292,-2825.94,0.00019178,2]
[387191591,1758629442302,-480.0,0.00019178,2]
[387191592,1758629442311,-241.54951708,0.00019178,2]
[387191593,1758629442329,-258.63048292,0.00019178,2]
[387191594,1758629442339,-267.83906189,0.00019178,2]
[387191595,1758629442394,291.6032729,0.00017888,2]
[387191596,1758629442464,-212.16093811,0.00019178,2]
[387191597,1758629442474,-480.0,0.00019178,2]
[387191598,1758629442483,-480.0,0.00019178,2]
[387191599,1758629442493,-480.0,0.00019178,2]
[387191600,1758629442502,-480.0,0.00019178,2]
[387191601,1758629442513,-480.0,0.00019178,2]
[387191602,1758629442523,-480.0,0.00019178,2]
[387191603,1758629442533,-480.0,0.00019178,2]
[387191604,1758629442543,-480.0,0.00019178,2]
[387191605,1758629442552,-480.0,0.00019178,2]
[387191606,1758629442561,-480.0,0.00019178,2]
[387191607,1758629442571,-480.0,0.00019178,2]
[387191608,1758629442579,-126.67617882,0.00019178,2]
[387191609,1758629442591,-1213.87500442,0.00019178,2]
[387191610,1758629442696,-671.77936835,0.00019178,2]
[387191611,1758629442708,-205.61944841,0.00019178,2]
[387191612,1758629442718,-5488.39453722,0.00019178,2]
[387191613,1758629442729,-5100.28546278,0.00019178,2]
[387191614,1758629442739,-484.91200207,0.00019178,2]
[387191615,1758629442748,-502.31,0.00019178,2]
[387191616,1758629442757,-480.0,0.00019178,2]
[387191617,1758629442767,-480.0,0.00019178,2]
[387191618,1758629442776,-480.0,0.00019178,2]
[387191619,1758629442785,-162.312196,0.00019178,2]
[387191620,1758629442795,-480.0,0.00019178,2]
[387191621,1758629442804,-484.74054688,0.00019178,2]
[387191622,1758629442813,-814.88,0.00019178,2]
[387191623,1758629442823,-480.0,0.00019178,2]
[387191624,1758629442832,-1422.96,0.00019178,2]
[387191625,1758629442841,-480.0,0.00019178,2]
[387191626,1758629442850,-780.52,0.00019178,2]
[387191627,1758629442859,-480.0,0.00019178,2]
[387191628,1758629442868,-485.59070794,0.00019178,2]
[387191629,1758629442877,-184.44946001,0.00019178,2]
[387191630,1758629442887,-480.0,0.00019178,2]
[387191631,1758629442896,-480.0,0.00019178,2]
[387191632,1758629442906,-480.0,0.00019178,2]
[387191633,1758629442915,-273.55474109,0.00019178,2]
[387191634,1758629442924,-480.0,0.00019178,2]
[387191635,1758629442933,-480.0,0.00019178,2]
[387191636,1758629442943,-480.0,0.00019178,2]
[387191637,1758629442952,-480.0,0.00019178,2]
[387191638,1758629442962,-505.09,0.00019178,2]
[387191639,1758629442971,-480.0,0.00019178,2]
[387191640,1758629442980,-480.0,0.00019178,2]
[387191641,1758629442989,-480.0,0.00019178,2]
[387191642,1758629442998,-1813.65945561,0.00019178,2]
[387191643,1758629443010,-598.44763185,0.00019178,2]
[387191644,1758629443021,-546.20276724,0.00019178,2]
[387191651,1758629443675,-2710.74489345,0.00019178,2]
[387191652,1758629443835,-446.53525185,0.00019178,2]
[387191653,1758629443845,-5.46474816,0.00019178,2]
[387191654,1758629443856,-474.53525184,0.00019178,2]
[387191655,1758629443866,-480.0,0.00019178,2]
[387191656,1758629443875,-485.83231119,0.00019178,2]
[387191657,1758629443884,-542.41976811,0.00019178,2]
[387191658,1758629443894,-374.29982094,0.00019178,2]
[387191659,1758629443904,-480.0,0.00019178,2]
[387191660,1758629443913,-480.0,0.00019178,2]
[387191661,1758629443923,-480.0,0.00019178,2]
[387191662,1758629443932,-480.0,0.00019178,2]
[387191663,1758629443943,-480.0,0.00019178,2]
[387191664,1758629443952,-480.0,0.00019178,2]
[387191665,1758629443961,-480.0,0.00019178,2]
[387191666,1758629443971,-151.0,0.00019178,2]
[387191667,1758629443980,-151.0,0.00019178,2]
[387191668,1758629443990,-151.0,0.00019178,2]
[387191669,1758629443999,-151.0,0.00019178,2]
[387191670,1758629444009,-151.0,0.00019178,2]
[387191671,1758629444018,-480.0,0.00019178,2]
[387191672,1758629444027,-1061.74,0.00019178,2]
[387191673,1758629444037,-711.05,0.00019178,2]
[387191674,1758629444046,-753.5,0.00019178,2]
[387191675,1758629444055,-480.0,0.00019178,2]
[387191676,1758629444065,-480.0,0.00019178,2]
[387191677,1758629444074,-1100.38,0.00019178,2]
[387191678,1758629444084,-480.0,0.00019178,2]
[387191679,1758629444093,-153.3836135,0.00019178,2]
[387191680,1758629444102,-480.0,0.00019178,2]
[387191681,1758629444112,-480.0,0.00019178,2]
[387191682,1758629444121,-830.68,0.00019178,2]
[387191683,1758629444130,-480.0,0.00019178,2]
[387191684,1758629444139,-491.28592299,0.00019178,2]
[387191685,1758629444149,-480.0,0.00019178,2]
[387191686,1758629444158,-480.0,0.00019178,2]
[387191687,1758629444167,-480.0,0.00019178,2]
[387191688,1758629444180,-480.0,0.00019178,2]
[387191689,1758629444189,-480.0,0.00019178,2]
[387191690,1758629444198,-205.321966,0.00019178,2]
[387191691,1758629444208,-205.321966,0.00019178,2]
[387191692,1758629444217,-205.321966,0.00019178,2]
[387191693,1758629444226,-151.0,0.00019178,2]
[387191694,1758629444235,-151.0,0.00019178,2]
[387191695,1758629444245,-205.321966,0.00019178,2]
[387191696,1758629444254,-205.321966,0.00019178,2]
[387191697,1758629444263,-205.321966,0.00019178,2]
[387191698,1758629444272,-205.321966,0.00019178,2]
[387191699,1758629444281,-205.321966,0.00019178,2]
[387191700,1758629444290,-480.0,0.00019178,2]
[387191701,1758629444300,-480.0,0.00019178,2]
[387191702,1758629444309,-205.321966,0.00019178,2]
[387191703,1758629444319,-480.0,0.00019178,2]
[387191704,1758629444328,-205.321966,0.00019178,2]
[387191705,1758629444337,-205.321966,0.00019178,2]
[387191706,1758629444347,-2464.81,0.00019178,2]
[387191707,1758629444356,-480.0,0.00019178,2]
[387191708,1758629444365,-480.0,0.00019178,2]
[387191709,1758629444375,-472.9391198,0.00019178,2]
[387191710,1758629444384,-480.0,0.00019178,2]
[387191711,1758629444393,-480.0,0.00019178,2]
[387191712,1758629444403,-540.5,0.00019178,2]
[387191713,1758629444412,-205.321966,0.00019178,2]
[387191714,1758629444422,-480.0,0.00019178,2]
[387191715,1758629444431,-480.0,0.00019178,2]
[387191716,1758629444440,-480.0,0.00019178,2]
[387191717,1758629444450,-844.65,0.00019178,2]
[387191718,1758629444460,-480.0,0.00019178,2]
[387191719,1758629444469,-480.0,0.00019178,2]
[387191720,1758629444479,-480.0,0.00019178,2]
[387191721,1758629444488,-745.7,0.00019178,2]
[387191722,1758629444499,-495.5,0.00019178,2]
[387191723,1758629444509,-221.77645655,0.00019178,2]
[387191724,1758629444521,-264.46533427,0.00019178,2]
[387191725,1758629444531,-346.84167324,0.00019178,2]
[387191726,1758629444540,-761.17,0.00019178,2]
[387191727,1758629444549,-480.0,0.00019178,2]
[387191728,1758629444559,-489.42449082,0.00019178,2]
[387191729,1758629444568,-45.92627993,0.00019178,2]
[387191730,1758629444579,-434.07372007,0.00019178,2]
[387191731,1758629444589,-480.0,0.00019178,2]
[387191732,1758629444599,-151.0,0.00019178,2]
[387191733,1758629444608,-151.0,0.00019178,2]
[387191734,1758629444618,-151.0,0.00019178,2]
[387191735,1758629444628,-480.0,0.00019178,2]
[387191736,1758629444638,-244.73895306,0.00019178,2]
[387191737,1758629444648,-480.0,0.00019178,2]
[387191738,1758629444657,-480.0,0.00019178,2]
[387191739,1758629444667,-151.0,0.00019178,2]
[387191740,1758629444676,-497.32787078,0.00019178,2]
[387191741,1758629444686,-480.0,0.00019178,2]
[387191742,1758629444696,-480.0,0.00019178,2]
[387191743,1758629444705,-480.0,0.00019178,2]
[387191744,1758629444715,-487.98,0.00019178,2]
[387191745,1758629444724,-1309.5,0.00019178,2]
[387191746,1758629444733,-480.0,0.00019178,2]
[387191747,1758629444743,-951.61,0.00019178,2]
[387191748,1758629444752,-480.0,0.00019178,2]
[387191749,1758629444761,-777.42,0.00019178,2]
[387191750,1758629444771,-480.0,0.00019178,2]
[387191751,1758629444780,-290.88671215,0.00019178,2]
[387191752,1758629444789,-480.0,0.00019178,2]
[387191753,1758629444799,-151.0,0.00019178,2]
[387191754,1758629444808,-151.0,0.00019178,2]
[387191755,1758629444817,-151.0,0.00019178,2]
[387191756,1758629444827,-480.0,0.00019178,2]
[387191757,1758629444836,-986.73,0.00019178,2]
[387191758,1758629444846,-480.0,0.00019178,2]
[387191759,1758629444856,-480.0,0.00019178,2]
[387191760,1758629444865,-480.0,0.00019178,2]
[387191761,1758629444874,-151.0,0.00019178,2]
[387191762,1758629444883,-480.0,0.00019178,2]
[387191763,1758629444893,-563.0,0.00019187,2]
[387191764,1758629444903,-151.0,0.000192,2]
[387191765,1758629444912,-345.0568819,0.0001928,2]
[387191766,1758629444921,-563.0,0.00019282,2]
[387191767,1758629444931,-903.76507985,0.00019288,2]
[387191768,1758629444941,-3611.4452591,0.00019288,2]
[387191769,1758629444951,-196.57378203,0.00019288,2]
[387191770,1758629444960,-774.04367041,0.00019288,2]
[387191771,1758629444970,-3093.07850697,0.00019288,2]
[387191772,1758629444979,-500.0,0.00019351,2]
[387191773,1758629444989,-407.2827298,0.0001937,2]
[387191774,1758629444999,-153.0,0.00019425,2]
[387191775,1758629445009,-323.1537193,0.00019425,2]
[387191776,1758629445018,-296.6276561,0.00019425,2]
[387191777,1758629445028,-342.4188153,0.00019425,2]
[387191778,1758629445037,-153.0,0.00019425,2]
[387191779,1758629445047,-153.0,0.00019425,2]
[387191780,1758629445056,-162.1839521,0.00019425,2]
[387191781,1758629445065,-296.6276561,0.00019425,2]
[387191782,1758629445075,-162.1839521,0.00019425,2]
[387191783,1758629445086,-296.6276561,0.00019425,2]
[387191784,1758629445095,-153.0,0.00019425,2]
[387191785,1758629445183,-296.6276561,0.00019425,2]
[387191786,1758629445194,-202.0237159,0.00019425,2]
[387191787,1758629445204,-205.321966,0.00019436,2]
[387191788,1758629445215,-205.321966,0.00019436,2]
[387191789,1758629445224,-205.321966,0.00019436,2]
[387191790,1758629445233,-205.321966,0.00019436,2]
[387191791,1758629445243,-151.0,0.00019436,2]
[387191792,1758629445253,-600.0,0.00019436,2]
[387191793,1758629445263,-500.0,0.00019451,2]
[387191794,1758629445272,-151.0,0.00019451,2]
[387191795,1758629445282,-500.0,0.00019452,2]
[387191796,1758629445291,-285.2369166,0.00019452,2]
[387191797,1758629445301,-480.0,0.00019452,2]
[387191798,1758629445310,-480.0,0.00019452,2]
[387191799,1758629445319,-480.0,0.00019452,2]
[387191800,1758629445328,-480.0,0.00019452,2]
[387191801,1758629445338,-166.74849695,0.00019452,2]
[387191802,1758629445347,-480.0,0.00019452,2]
[387191803,1758629445356,-480.0,0.00019452,2]
[387191804,1758629445366,-491.6859979,0.00019452,2]
[387191805,1758629445376,-480.0,0.00019452,2]
[387191806,1758629445385,-480.0,0.00019452,2]
[387191807,1758629445394,-480.0,0.00019452,2]
[387191808,1758629445403,-480.0,0.00019452,2]
[387191809,1758629445413,-244.47242404,0.00019452,2]
[387191810,1758629445422,-480.0,0.00019452,2]
[387191811,1758629445431,-480.0,0.00019452,2]
[387191812,1758629445440,-480.0,0.00019452,2]
[387191813,1758629445449,-480.0,0.00019452,2]
[387191814,1758629445458,-480.0,0.00019452,2]
[387191815,1758629445467,-480.0,0.00019452,2]
[387191816,1758629445477,-480.0,0.00019452,2]
[387191817,1758629445486,-480.0,0.00019452,2]